[Event "*** Titled Tuesday Blitz"]
[Site "Chess.com"]
[Date "2020.04.14"]
[Round "4"]
[White "JMatias"]
[Black "crywolf1986"]
[Result "1-0"]
[WhiteElo "2361"]
[BlackElo "2569"]
[TimeControl "180+1"]
[EndTime "10:40:09 PDT"]
[Termination "JMatias won by resignation"]

1. e4 {[%clk 0:02:36.4]} 1... d5 {[%clk 0:02:58]} 2. exd5 {[%clk 0:02:35.7]}
2... Qxd5 {[%clk 0:02:58.9]} 3. Nc3 {[%clk 0:02:35.9]} 3... Qd6 {[%clk
0:02:58.6]} 4. Nf3 {[%clk 0:02:34.5]} 4... a6 {[%clk 0:02:58.3]} 5. g3 {[%clk
0:02:34.2]} 5... Nf6 {[%clk 0:02:58]} 6. h3 {[%clk 0:02:34.2]} 6... c5 {[%clk
0:02:56.6]} 7. Bg2 {[%clk 0:02:34]} 7... Nc6 {[%clk 0:02:56.9]} 8. O-O {[%clk
0:02:34.1]} 8... g6 {[%clk 0:02:52.9]} 9. d3 {[%clk 0:02:34]} 9... Bg7 {[%clk
0:02:52.7]} 10. Bf4 {[%clk 0:02:33.7]} 10... Qd8 {[%clk 0:02:49.2]} 11. Qd2
{[%clk 0:02:33.2]} 11... O-O {[%clk 0:02:48.2]} 12. Na4 {[%clk 0:02:26.5]} 12...
Nd7 {[%clk 0:02:46]} 13. Bh6 {[%clk 0:02:23.5]} 13... b5 {[%clk 0:02:29.4]} 14.
Bxg7 {[%clk 0:02:23.4]} 14... Kxg7 {[%clk 0:02:29.2]} 15. Nxc5 {[%clk
0:02:23.2]} 15... Nxc5 {[%clk 0:02:28.1]} 16. Qc3+ {[%clk 0:02:22.9]} 16... f6
{[%clk 0:02:23.5]} 17. Qxc5 {[%clk 0:02:22.9]} 17... Bb7 {[%clk 0:02:17]} 18.
Rfe1 {[%clk 0:02:11.9]} 18... Rc8 {[%clk 0:02:11.2]} 19. a3 {[%clk 0:02:11.8]}
19... e5 {[%clk 0:02:10.6]} 20. Rad1 {[%clk 0:02:05.5]} 20... Re8 {[%clk
0:01:58.8]} 21. Qe3 {[%clk 0:01:56.6]} 21... Nd4 {[%clk 0:01:42.7]} 22. Nxd4
{[%clk 0:01:55.3]} 22... Bxg2 {[%clk 0:01:40.9]} 23. Kxg2 {[%clk 0:01:42.2]}
23... Qxd4 {[%clk 0:01:39.4]} 24. Qxd4 {[%clk 0:01:40.5]} 24... exd4 {[%clk
0:01:40.3]} 25. Rxe8 {[%clk 0:01:40.1]} 25... Rxe8 {[%clk 0:01:40.3]} 26. Kf1
{[%clk 0:01:41]} 26... Rc8 {[%clk 0:01:32.4]} 27. Rd2 {[%clk 0:01:40.8]} 27...
f5 {[%clk 0:01:31.8]} 28. Re2 {[%clk 0:01:41.7]} 28... Kf6 {[%clk 0:01:31.6]}
29. Ke1 {[%clk 0:01:41.8]} 29... g5 {[%clk 0:01:31.2]} 30. Kd2 {[%clk
0:01:42.7]} 30... h5 {[%clk 0:01:30.9]} 31. c3 {[%clk 0:01:42.2]} 31... dxc3+
{[%clk 0:01:29.3]} 32. bxc3 {[%clk 0:01:43.1]} 32... Rh8 {[%clk 0:01:27.1]} 33.
f3 {[%clk 0:01:33.9]} 33... h4 {[%clk 0:01:20]} 34. g4 {[%clk 0:01:33.5]} 34...
Rc8 {[%clk 0:01:16.4]} 35. Re1 {[%clk 0:01:30.2]} 35... fxg4 {[%clk 0:01:12.3]}
36. fxg4 {[%clk 0:01:30.1]} 36... Rc6 {[%clk 0:01:12.7]} 37. Rf1+ {[%clk
0:01:29.8]} 37... Kg6 {[%clk 0:01:12]} 38. Rf5 {[%clk 0:01:29.9]} 38... Re6
{[%clk 0:01:11.6]} 39. d4 {[%clk 0:01:22.4]} 39... Re4 {[%clk 0:01:08.4]} 40. d5
{[%clk 0:01:03.1]} 40... Re8 {[%clk 0:01:06.8]} 41. d6 {[%clk 0:01:02.6]} 41...
Rd8 {[%clk 0:01:06.2]} 42. Rd5 {[%clk 0:01:02.4]} 42... Kf6 {[%clk 0:01:06]} 43.
Ke3 {[%clk 0:01:02.1]} 43... Ke6 {[%clk 0:01:02.1]} 44. Rxg5 {[%clk 0:01:01.3]}
44... Kxd6 {[%clk 0:01:00.5]} 45. Rh5 {[%clk 0:01:00.9]} 45... Rc8 {[%clk
0:01:00.1]} 46. Kd2 {[%clk 0:01:00.4]} 46... Rf8 {[%clk 0:01:00.1]} 47. Rxh4
{[%clk 0:01:00.1]} 47... Rf2+ {[%clk 0:01:00.4]} 48. Ke3 {[%clk 0:00:59.8]}
48... Rc2 {[%clk 0:00:57.9]} 49. Kd3 {[%clk 0:00:58.1]} 49... Rh2 {[%clk
0:00:57.6]} 50. Kd4 {[%clk 0:00:57.4]} 50... Rd2+ {[%clk 0:00:56.3]} 51. Ke4
{[%clk 0:00:57.3]} 51... Rc2 {[%clk 0:00:53.1]} 52. Rh6+ {[%clk 0:00:56.6]}
52... Ke7 {[%clk 0:00:49.3]} 53. Rxa6 {[%clk 0:00:54.2]} 53... Rxc3 {[%clk
0:00:49.3]} 54. h4 {[%clk 0:00:54.3]} 54... Rb3 {[%clk 0:00:47.9]} 55. h5 {[%clk
0:00:53.9]} 55... b4 {[%clk 0:00:47]} 56. axb4 {[%clk 0:00:50.8]} 56... Rxb4+
{[%clk 0:00:47.9]} 57. Kf5 {[%clk 0:00:50.8]} 57... Rb5+ {[%clk 0:00:48.3]} 58.
Kg6 {[%clk 0:00:50.6]} 58... Rb4 {[%clk 0:00:48]} 59. g5 {[%clk 0:00:50.6]}
59... Rb8 {[%clk 0:00:46.1]} 60. h6 {[%clk 0:00:50.2]} 60... Rg8+ {[%clk
0:00:46.6]} 61. Kh5 {[%clk 0:00:49.9]} 61... Rc8 {[%clk 0:00:45.8]} 62. h7
{[%clk 0:00:49.8]} 62... Kf7 {[%clk 0:00:45.1]} 63. g6+ {[%clk 0:00:49.3]} 63...
Kg7 {[%clk 0:00:44.9]} 64. Ra7+ {[%clk 0:00:49.1]} 64... Kh8 {[%clk 0:00:44.3]}
65. Kh6 {[%clk 0:00:48.1]} 65... Rg8 {[%clk 0:00:43.5]} 66. hxg8=N {[%clk
0:00:42.7]} 1-0

[Event "*** Titled Tuesday Blitz"]
[Site "Chess.com"]
[Date "2020.04.14"]
[Round "4"]
[White "nihalsarin"]
[Black "awesomevishesh"]
[Result "1-0"]
[WhiteElo "3057"]
[BlackElo "2536"]
[TimeControl "180+1"]
[EndTime "10:40:10 PDT"]
[Termination "nihalsarin won by resignation"]

1. d4 {[%clk 0:03:00.9]} 1... Nf6 {[%clk 0:02:59.4]} 2. c4 {[%clk 0:03:00.8]}
2... e6 {[%clk 0:02:57.4]} 3. Nf3 {[%clk 0:03:00.8]} 3... d5 {[%clk 0:02:57.4]}
4. g3 {[%clk 0:02:59.1]} 4... dxc4 {[%clk 0:02:42.4]} 5. Bg2 {[%clk 0:02:57.9]}
5... a6 {[%clk 0:02:42.1]} 6. O-O {[%clk 0:02:55.1]} 6... Nc6 {[%clk 0:02:38.1]}
7. e3 {[%clk 0:02:55.1]} 7... Bd6 {[%clk 0:02:15.6]} 8. Qe2 {[%clk 0:02:30.3]}
8... O-O {[%clk 0:02:03.8]} 9. Qxc4 {[%clk 0:02:28.7]} 9... e5 {[%clk
0:01:57.7]} 10. d5 {[%clk 0:02:23.8]} 10... Ne7 {[%clk 0:01:54.7]} 11. Nc3
{[%clk 0:02:23.8]} 11... b5 {[%clk 0:01:50.5]} 12. Qb3 {[%clk 0:02:21.5]} 12...
Bb7 {[%clk 0:01:49.4]} 13. e4 {[%clk 0:02:20.1]} 13... c6 {[%clk 0:01:44.6]} 14.
Bg5 {[%clk 0:02:12.2]} 14... Nd7 {[%clk 0:01:18.2]} 15. Rad1 {[%clk 0:02:02.5]}
15... Nc5 {[%clk 0:01:13.7]} 16. Qc2 {[%clk 0:01:59.9]} 16... cxd5 {[%clk
0:01:13.3]} 17. Nxd5 {[%clk 0:01:58.4]} 17... f6 {[%clk 0:01:08.5]} 18. Be3
{[%clk 0:01:39.7]} 18... Rc8 {[%clk 0:01:06.5]} 19. Qb1 {[%clk 0:01:24.7]} 19...
Nxd5 {[%clk 0:01:01.5]} 20. exd5 {[%clk 0:01:25.6]} 20... b4 {[%clk 0:00:56.1]}
21. Nh4 {[%clk 0:01:17.1]} 21... Qd7 {[%clk 0:00:51.2]} 22. Nf5 {[%clk
0:01:11.7]} 22... Rc7 {[%clk 0:00:36.7]} 23. Bh3 {[%clk 0:01:07.2]} 23... Qd8
{[%clk 0:00:29.9]} 24. Rc1 {[%clk 0:00:40.7]} 24... Bc8 {[%clk 0:00:24.3]} 25.
Rfd1 {[%clk 0:00:36.4]} 25... g6 {[%clk 0:00:20.9]} 26. Nxd6 {[%clk 0:00:32.4]}
26... Qxd6 {[%clk 0:00:19.4]} 27. Bxc5 {[%clk 0:00:20.1]} 27... Rxc5 {[%clk
0:00:17.2]} 28. Rxc5 {[%clk 0:00:21]} 28... Qxc5 {[%clk 0:00:10.9]} 29. Bxc8
{[%clk 0:00:21.5]} 29... Rxc8 {[%clk 0:00:10.3]} 30. d6 {[%clk 0:00:22]} 30...
Rd8 {[%clk 0:00:09.5]} 31. Qd3 {[%clk 0:00:22.2]} 31... a5 {[%clk 0:00:08.2]}
32. d7 {[%clk 0:00:21.9]} 32... Kf7 {[%clk 0:00:08.2]} 33. Qa6 {[%clk
0:00:19.7]} 33... Qc7 {[%clk 0:00:07.2]} 34. Rd6 {[%clk 0:00:12.5]} 34... Rxd7
{[%clk 0:00:05.9]} 35. Rxf6+ {[%clk 0:00:13.1]} 35... Kg7 {[%clk 0:00:06.2]} 36.
Re6 {[%clk 0:00:09.9]} 36... Rd1+ {[%clk 0:00:06.1]} 37. Kg2 {[%clk 0:00:10.1]}
37... Qd7 {[%clk 0:00:04.9]} 38. Rxe5 {[%clk 0:00:07.5]} 38... Rd2 {[%clk
0:00:04.2]} 39. Qxa5 {[%clk 0:00:05.1]} 39... Rxb2 {[%clk 0:00:04.1]} 40. Qc5
{[%clk 0:00:04.5]} 40... Rxa2 {[%clk 0:00:03.4]} 41. Re7+ {[%clk 0:00:04.4]}
41... Kf6 {[%clk 0:00:03.4]} 1-0

[Event "*** Titled Tuesday Blitz"]
[Site "Chess.com"]
[Date "2020.04.14"]
[Round "4"]
[White "kingandqueen2017"]
[Black "Chessmasterzt"]
[Result "1-0"]
[WhiteElo "2362"]
[BlackElo "2524"]
[TimeControl "180+1"]
[EndTime "10:40:11 PDT"]
[Termination "kingandqueen2017 won on time"]

1. d4 {[%clk 0:03:00.9]} 1... Nf6 {[%clk 0:02:59]} 2. c4 {[%clk 0:03:00.8]} 2...
c5 {[%clk 0:02:59.2]} 3. d5 {[%clk 0:03:00.9]} 3... b5 {[%clk 0:02:59.7]} 4.
cxb5 {[%clk 0:03:01]} 4... a6 {[%clk 0:03:00.1]} 5. bxa6 {[%clk 0:03:01.1]} 5...
g6 {[%clk 0:03:00.5]} 6. Nc3 {[%clk 0:03:01.1]} 6... Bxa6 {[%clk 0:03:00.8]} 7.
e4 {[%clk 0:03:00.4]} 7... Bxf1 {[%clk 0:03:01.7]} 8. Kxf1 {[%clk 0:03:00.3]}
8... d6 {[%clk 0:03:02.6]} 9. Nf3 {[%clk 0:03:00.5]} 9... Bg7 {[%clk 0:03:03]}
10. g3 {[%clk 0:03:00.8]} 10... O-O {[%clk 0:03:03.2]} 11. Kg2 {[%clk
0:03:00.8]} 11... Qb6 {[%clk 0:03:03.4]} 12. a4 {[%clk 0:03:00.1]} 12... Na6
{[%clk 0:03:03]} 13. Nd2 {[%clk 0:02:58]} 13... Rfb8 {[%clk 0:02:51.8]} 14. Nb5
{[%clk 0:02:55.2]} 14... Nc7 {[%clk 0:02:47]} 15. Nc4 {[%clk 0:02:51.4]} 15...
Qb7 {[%clk 0:02:38.2]} 16. Nxc7 {[%clk 0:02:49.3]} 16... Qxc7 {[%clk 0:02:39.1]}
17. Qc2 {[%clk 0:02:48.2]} 17... Nd7 {[%clk 0:02:24.3]} 18. Bd2 {[%clk
0:02:45.6]} 18... Ne5 {[%clk 0:02:21.4]} 19. Nxe5 {[%clk 0:02:41.5]} 19... Bxe5
{[%clk 0:02:22.3]} 20. Bc3 {[%clk 0:02:41.3]} 20... Bxc3 {[%clk 0:02:17.7]} 21.
bxc3 {[%clk 0:02:40.5]} 21... c4 {[%clk 0:02:06.2]} 22. Rhb1 {[%clk 0:02:38.6]}
22... Rxb1 {[%clk 0:02:02.1]} 23. Rxb1 {[%clk 0:02:37.3]} 23... Qc5 {[%clk
0:01:56.1]} 24. Rb4 {[%clk 0:02:31.6]} 24... f5 {[%clk 0:01:55.8]} 25. Rb5
{[%clk 0:02:26.4]} 25... Qa7 {[%clk 0:01:49]} 26. exf5 {[%clk 0:02:17.6]} 26...
Qxa4 {[%clk 0:01:49]} 27. Qxa4 {[%clk 0:02:11.6]} 27... Rxa4 {[%clk 0:01:49.9]}
28. fxg6 {[%clk 0:02:11.6]} 28... hxg6 {[%clk 0:01:50.8]} 29. Rb7 {[%clk
0:01:58.7]} 29... Kf7 {[%clk 0:01:47.9]} 30. Rc7 {[%clk 0:01:58.6]} 30... Ra5
{[%clk 0:01:46.5]} 31. Rxc4 {[%clk 0:01:58]} 31... Rxd5 {[%clk 0:01:46.8]} 32.
Rf4+ {[%clk 0:01:57.8]} 32... Kg7 {[%clk 0:01:45.7]} 33. h4 {[%clk 0:01:57]}
33... Rd3 {[%clk 0:01:41.2]} 34. c4 {[%clk 0:01:55.7]} 34... e5 {[%clk
0:01:37.7]} 35. Re4 {[%clk 0:01:53.7]} 35... Kf6 {[%clk 0:01:34.2]} 36. Re3
{[%clk 0:01:50]} 36... Rd4 {[%clk 0:01:32]} 37. Rc3 {[%clk 0:01:50]} 37... g5
{[%clk 0:01:16.8]} 38. hxg5+ {[%clk 0:01:38.7]} 38... Kxg5 {[%clk 0:01:17.7]}
39. c5 {[%clk 0:01:38.4]} 39... dxc5 {[%clk 0:01:16.8]} 40. Rxc5 {[%clk
0:01:38.3]} 40... Kf6 {[%clk 0:01:17.5]} 41. Rc6+ {[%clk 0:01:36.4]} 41... Kf5
{[%clk 0:01:16.3]} 42. Rc8 {[%clk 0:01:36.2]} 42... Rd2 {[%clk 0:01:12.8]} 43.
Rf8+ {[%clk 0:01:35.8]} 43... Kg5 {[%clk 0:01:10.8]} 44. Kh3 {[%clk 0:01:33.5]}
44... Ra2 {[%clk 0:01:07]} 45. f3 {[%clk 0:01:28]} 45... Ra3 {[%clk 0:00:58.8]}
46. Rg8+ {[%clk 0:01:27.4]} 46... Kf5 {[%clk 0:00:57.6]} 47. g4+ {[%clk
0:01:19.4]} 47... Ke6 {[%clk 0:00:43.7]} 48. Kg3 {[%clk 0:01:12.7]} 48... Kf6
{[%clk 0:00:38.1]} 49. Rf8+ {[%clk 0:01:10.6]} 49... Ke6 {[%clk 0:00:33.1]} 50.
g5 {[%clk 0:01:09.1]} 50... Ra1 {[%clk 0:00:28.4]} 51. Kg4 {[%clk 0:01:08.1]}
51... Rh1 {[%clk 0:00:14.4]} 52. g6 {[%clk 0:01:06.7]} 52... Ke7 {[%clk
0:00:11.6]} 53. Rf7+ {[%clk 0:00:59.7]} 53... Ke6 {[%clk 0:00:11.4]} 54. Kg5
{[%clk 0:00:59.2]} 54... Rg1+ {[%clk 0:00:09.2]} 55. Kh6 {[%clk 0:00:58.7]}
55... Rh1+ {[%clk 0:00:09.4]} 56. Kg7 {[%clk 0:00:58.5]} 56... Rh3 {[%clk
0:00:07.7]} 57. Rf6+ {[%clk 0:00:57.5]} 57... Ke7 {[%clk 0:00:06.7]} 58. Rf7+
{[%clk 0:00:52.1]} 58... Ke6 {[%clk 0:00:06.5]} 59. Kg8 {[%clk 0:00:52.2]} 59...
Rg3 {[%clk 0:00:03.4]} 60. g7 {[%clk 0:00:51.9]} 60... Rh3 {[%clk 0:00:02.8]}
61. Kf8 {[%clk 0:00:51.5]} 1-0

[Event "*** Titled Tuesday Blitz"]
[Site "Chess.com"]
[Date "2020.04.14"]
[Round "4"]
[White "Trickov"]
[Black "Kimster98"]
[Result "0-1"]
[WhiteElo "2264"]
[BlackElo "2532"]
[TimeControl "180+1"]
[EndTime "10:40:11 PDT"]
[Termination "Kimster98 won by checkmate"]

1. d4 {[%clk 0:02:58.2]} 1... Nf6 {[%clk 0:02:59.6]} 2. Nf3 {[%clk 0:02:58.6]}
2... b6 {[%clk 0:02:58.6]} 3. g3 {[%clk 0:02:58.4]} 3... Bb7 {[%clk 0:02:58.8]}
4. Bg2 {[%clk 0:02:59]} 4... g6 {[%clk 0:02:58.2]} 5. O-O {[%clk 0:02:59.6]}
5... Bg7 {[%clk 0:02:58.3]} 6. c4 {[%clk 0:03:00.2]} 6... e6 {[%clk 0:02:57.8]}
7. Nc3 {[%clk 0:03:00.8]} 7... Ne4 {[%clk 0:02:58]} 8. Qc2 {[%clk 0:02:52]} 8...
Nxc3 {[%clk 0:02:55.4]} 9. bxc3 {[%clk 0:02:51.5]} 9... d6 {[%clk 0:02:49.2]}
10. e4 {[%clk 0:02:50.5]} 10... Nd7 {[%clk 0:02:48.4]} 11. Bg5 {[%clk
0:02:49.6]} 11... f6 {[%clk 0:02:47.1]} 12. Be3 {[%clk 0:02:47]} 12... O-O
{[%clk 0:02:46.9]} 13. a4 {[%clk 0:02:41.9]} 13... a5 {[%clk 0:02:40.3]} 14. c5
{[%clk 0:02:37.2]} 14... dxc5 {[%clk 0:02:27.5]} 15. dxc5 {[%clk 0:02:36.5]}
15... Nxc5 {[%clk 0:02:27.5]} 16. Bxc5 {[%clk 0:02:35.9]} 16... bxc5 {[%clk
0:02:28.4]} 17. Qb3 {[%clk 0:02:35.7]} 17... Qc8 {[%clk 0:02:26]} 18. Qc4 {[%clk
0:02:26.2]} 18... Ba6 {[%clk 0:02:24.9]} 19. Qxc5 {[%clk 0:02:23.8]} 19... Bxf1
{[%clk 0:02:25.4]} 20. Bxf1 {[%clk 0:02:24.2]} 20... Rd8 {[%clk 0:02:21.7]} 21.
Bc4 {[%clk 0:02:23.2]} 21... Bf8 {[%clk 0:02:17.7]} 22. Qe3 {[%clk 0:02:09.3]}
22... Kg7 {[%clk 0:01:44.8]} 23. e5 {[%clk 0:02:07.4]} 23... f5 {[%clk
0:01:43.5]} 24. Ng5 {[%clk 0:01:56.8]} 24... Re8 {[%clk 0:01:40.7]} 25. Qf3
{[%clk 0:01:53.3]} 25... c6 {[%clk 0:01:27.5]} 26. h4 {[%clk 0:01:33.3]} 26...
h6 {[%clk 0:01:25.8]} 27. Nh3 {[%clk 0:01:33.3]} 27... Qc7 {[%clk 0:01:12.4]}
28. Nf4 {[%clk 0:01:25.3]} 28... Qxe5 {[%clk 0:00:58.3]} 29. Qxc6 {[%clk
0:01:24.1]} 29... Qd6 {[%clk 0:00:43.8]} 30. Nxe6+ {[%clk 0:01:19]} 30... Kf6
{[%clk 0:00:32.4]} 31. Qxd6 {[%clk 0:01:04]} 31... Bxd6 {[%clk 0:00:33.3]} 32.
Nd4 {[%clk 0:01:04]} 32... Be5 {[%clk 0:00:21.5]} 33. Rb1 {[%clk 0:00:48.8]}
33... Rab8 {[%clk 0:00:18.6]} 34. Bb5 {[%clk 0:00:48.6]} 34... Rec8 {[%clk
0:00:17.3]} 35. Rd1 {[%clk 0:00:43.8]} 35... Rxc3 {[%clk 0:00:15.3]} 36. Nc6
{[%clk 0:00:42.9]} 36... Rc8 {[%clk 0:00:14.8]} 37. Nxa5 {[%clk 0:00:35.4]}
37... Rc1 {[%clk 0:00:14]} 38. Rxc1 {[%clk 0:00:34.1]} 38... Rxc1+ {[%clk
0:00:14.9]} 39. Kg2 {[%clk 0:00:33.8]} 39... Rc2 {[%clk 0:00:14.2]} 40. Nc6
{[%clk 0:00:33.1]} 40... Bd6 {[%clk 0:00:12.6]} 41. Nd4 {[%clk 0:00:29.6]} 41...
Ra2 {[%clk 0:00:12.3]} 42. Nb3 {[%clk 0:00:20.3]} 42... Bc7 {[%clk 0:00:12.1]}
43. a5 {[%clk 0:00:18.6]} 43... Bb8 {[%clk 0:00:08.9]} 44. a6 {[%clk 0:00:15.2]}
44... Ba7 {[%clk 0:00:08.9]} 45. Nc1 {[%clk 0:00:13.8]} 45... Rxf2+ {[%clk
0:00:08.8]} 46. Kh3 {[%clk 0:00:13]} 46... Rb2 {[%clk 0:00:08.8]} 47. Bc4 {[%clk
0:00:12.2]} 47... g5 {[%clk 0:00:08.9]} 48. Nd3 {[%clk 0:00:12]} 48... g4#
{[%clk 0:00:08.5]} 0-1

[Event "*** Titled Tuesday Blitz"]
[Site "Chess.com"]
[Date "2020.04.14"]
[Round "4"]
[White "HarutyunianTigranK"]
[Black "GadimbayliA"]
[Result "0-1"]
[WhiteElo "2711"]
[BlackElo "2898"]
[TimeControl "180+1"]
[EndTime "10:40:13 PDT"]
[Termination "GadimbayliA won on time"]

1. c4 {[%clk 0:03:00.9]} 1... e5 {[%clk 0:02:56.6]} 2. Nc3 {[%clk 0:03:00.7]}
2... Nf6 {[%clk 0:02:56.8]} 3. Nf3 {[%clk 0:03:00.8]} 3... Nc6 {[%clk
0:02:56.8]} 4. e4 {[%clk 0:03:01.3]} 4... Bc5 {[%clk 0:02:56.1]} 5. Nxe5 {[%clk
0:03:00.7]} 5... Nxe5 {[%clk 0:02:57]} 6. d4 {[%clk 0:03:00.1]} 6... Bb4 {[%clk
0:02:57.5]} 7. dxe5 {[%clk 0:03:00.5]} 7... Nxe4 {[%clk 0:02:57.9]} 8. Qf3
{[%clk 0:03:00.8]} 8... Nxc3 {[%clk 0:02:55.5]} 9. bxc3 {[%clk 0:03:00.8]} 9...
Bc5 {[%clk 0:02:54.5]} 10. Qg3 {[%clk 0:02:58.9]} 10... Rg8 {[%clk 0:02:36.9]}
11. Bd3 {[%clk 0:02:53.4]} 11... g6 {[%clk 0:02:24.7]} 12. O-O {[%clk
0:02:52.7]} 12... Qe7 {[%clk 0:01:52.1]} 13. Bg5 {[%clk 0:02:25.4]} 13... Qe6
{[%clk 0:01:51]} 14. Rad1 {[%clk 0:02:25.9]} 14... Be7 {[%clk 0:01:46.3]} 15.
Be4 {[%clk 0:02:15]} 15... Bxg5 {[%clk 0:01:42.1]} 16. Qxg5 {[%clk 0:02:14.6]}
16... a5 {[%clk 0:01:35.1]} 17. Bd5 {[%clk 0:02:08.1]} 17... Qe7 {[%clk
0:01:35.4]} 18. Qh6 {[%clk 0:02:07.8]} 18... Ra6 {[%clk 0:01:28.7]} 19. Rd3
{[%clk 0:01:59.8]} 19... Rb6 {[%clk 0:01:06.2]} 20. Rf3 {[%clk 0:01:56.3]} 20...
Rf8 {[%clk 0:01:06.2]} 21. h3 {[%clk 0:01:39.6]} 21... a4 {[%clk 0:00:59.8]} 22.
Qxh7 {[%clk 0:01:31.2]} 22... f5 {[%clk 0:00:59.7]} 23. Qh6 {[%clk 0:01:23.4]}
23... g5 {[%clk 0:00:48.9]} 24. Qh5+ {[%clk 0:01:19.4]} 24... Kd8 {[%clk
0:00:49.3]} 25. Rg3 {[%clk 0:01:18]} 25... c6 {[%clk 0:00:48.8]} 26. Bf3 {[%clk
0:01:16.6]} 26... a3 {[%clk 0:00:42.6]} 27. Rxg5 {[%clk 0:01:10.3]} 27... Qxe5
{[%clk 0:00:42.4]} 28. Qh4 {[%clk 0:00:50.7]} 28... Kc7 {[%clk 0:00:39.1]} 29.
Qd4 {[%clk 0:00:50.3]} 29... Qxd4 {[%clk 0:00:30.8]} 30. cxd4 {[%clk 0:00:50.5]}
30... Rb2 {[%clk 0:00:31.7]} 31. Ra1 {[%clk 0:00:50.8]} 31... b6 {[%clk
0:00:30.7]} 32. h4 {[%clk 0:00:51]} 32... Ba6 {[%clk 0:00:30.8]} 33. d5 {[%clk
0:00:33.9]} 33... Bxc4 {[%clk 0:00:21.1]} 34. dxc6 {[%clk 0:00:33.5]} 34... dxc6
{[%clk 0:00:21.5]} 35. Rg7+ {[%clk 0:00:28.8]} 35... Rf7 {[%clk 0:00:20.4]} 36.
Rg6 {[%clk 0:00:27.3]} 36... c5 {[%clk 0:00:17.1]} 37. h5 {[%clk 0:00:25]} 37...
Rxa2 {[%clk 0:00:16.8]} 38. Rc6+ {[%clk 0:00:23.7]} 38... Kd8 {[%clk 0:00:13.1]}
39. Rd1+ {[%clk 0:00:23.3]} 39... Rd7 {[%clk 0:00:13.3]} 40. Rcd6 {[%clk
0:00:17.1]} 40... Rxd6 {[%clk 0:00:10.7]} 41. Rxd6+ {[%clk 0:00:18]} 41... Kc7
{[%clk 0:00:11.3]} 42. Rc6+ {[%clk 0:00:17.7]} 42... Kd7 {[%clk 0:00:10.1]} 43.
h6 {[%clk 0:00:05.3]} 43... Ra1+ {[%clk 0:00:10.1]} 44. Kh2 {[%clk 0:00:05.6]}
44... a2 {[%clk 0:00:11]} 0-1

[Event "*** Titled Tuesday Blitz"]
[Site "Chess.com"]
[Date "2020.04.14"]
[Round "4"]
[White "SONOFHOLYGOD"]
[Black "OparinGrigoriy"]
[Result "1-0"]
[WhiteElo "2609"]
[BlackElo "2952"]
[TimeControl "180+1"]
[EndTime "10:40:13 PDT"]
[Termination "SONOFHOLYGOD won by resignation"]

1. d4 {[%clk 0:03:00.9]} 1... Nf6 {[%clk 0:02:59.7]} 2. Nf3 {[%clk 0:03:00.5]}
2... e6 {[%clk 0:03:00.6]} 3. Bf4 {[%clk 0:02:59.8]} 3... b6 {[%clk 0:02:59.6]}
4. Nbd2 {[%clk 0:02:59.7]} 4... Bb7 {[%clk 0:03:00.2]} 5. e3 {[%clk 0:03:00.2]}
5... Bd6 {[%clk 0:02:58]} 6. Bg3 {[%clk 0:02:59.5]} 6... O-O {[%clk 0:02:58.5]}
7. Bd3 {[%clk 0:02:59.3]} 7... Qe7 {[%clk 0:02:59.1]} 8. Qe2 {[%clk 0:02:43.7]}
8... Nc6 {[%clk 0:02:56.5]} 9. Ne5 {[%clk 0:02:39.4]} 9... Nb4 {[%clk
0:02:54.4]} 10. f4 {[%clk 0:02:38.2]} 10... c5 {[%clk 0:02:51.4]} 11. O-O {[%clk
0:02:14.2]} 11... Bc7 {[%clk 0:02:46.9]} 12. c3 {[%clk 0:02:07.3]} 12... Nxd3
{[%clk 0:02:46.8]} 13. Qxd3 {[%clk 0:02:04.5]} 13... d6 {[%clk 0:02:42.3]} 14.
Bh4 {[%clk 0:02:03.1]} 14... Bd8 {[%clk 0:01:40.9]} 15. Ng4 {[%clk 0:01:35.9]}
15... Kh8 {[%clk 0:01:29.4]} 16. e4 {[%clk 0:01:30.5]} 16... Qc7 {[%clk
0:01:23]} 17. Nxf6 {[%clk 0:01:27.6]} 17... gxf6 {[%clk 0:01:21.1]} 18. d5
{[%clk 0:01:23.5]} 18... Rg8 {[%clk 0:01:13.5]} 19. c4 {[%clk 0:01:20.8]} 19...
b5 {[%clk 0:01:06.3]} 20. f5 {[%clk 0:01:14.4]} 20... e5 {[%clk 0:00:59.9]} 21.
cxb5 {[%clk 0:01:07.5]} 21... a6 {[%clk 0:00:58.9]} 22. bxa6 {[%clk 0:00:57.2]}
22... Bxa6 {[%clk 0:00:58.6]} 23. Nc4 {[%clk 0:00:57.2]} 23... Rg4 {[%clk
0:00:57.8]} 24. Bf2 {[%clk 0:00:44.2]} 24... Qe7 {[%clk 0:00:56.6]} 25. b3
{[%clk 0:00:42.4]} 25... Bc7 {[%clk 0:00:51.4]} 26. h3 {[%clk 0:00:42.8]} 26...
Rg7 {[%clk 0:00:50.3]} 27. Be3 {[%clk 0:00:37.3]} 27... Rag8 {[%clk 0:00:50.4]}
28. Rf2 {[%clk 0:00:36.2]} 28... Rg3 {[%clk 0:00:49.4]} 29. Kh1 {[%clk
0:00:34.9]} 29... Ba5 {[%clk 0:00:45.1]} 30. Rg1 {[%clk 0:00:30.7]} 30... Qf8
{[%clk 0:00:41.9]} 31. Qe2 {[%clk 0:00:29.8]} 31... Bc3 {[%clk 0:00:38.2]} 32.
Rf3 {[%clk 0:00:27.7]} 32... Bd4 {[%clk 0:00:36.3]} 33. Qf2 {[%clk 0:00:26.2]}
33... R3g5 {[%clk 0:00:31.3]} 34. Qe2 {[%clk 0:00:20.5]} 34... Rg3 {[%clk
0:00:27.2]} 35. Qf2 {[%clk 0:00:20.4]} 35... R3g7 {[%clk 0:00:27.6]} 36. Qe2
{[%clk 0:00:20]} 36... Qb8 {[%clk 0:00:23.8]} 37. Rd1 {[%clk 0:00:19.2]} 37...
Rg3 {[%clk 0:00:22.9]} 38. Rxg3 {[%clk 0:00:18.6]} 38... Rxg3 {[%clk 0:00:22.7]}
39. Bf2 {[%clk 0:00:19.2]} 39... Rg8 {[%clk 0:00:22.4]} 40. Bh4 {[%clk
0:00:18.8]} 40... Qd8 {[%clk 0:00:21.9]} 41. Qh5 {[%clk 0:00:18.4]} 41... Kg7
{[%clk 0:00:21]} 42. Rd3 {[%clk 0:00:18.1]} 42... Kf8 {[%clk 0:00:19.7]} 43.
Qh6+ {[%clk 0:00:17.2]} 43... Ke8 {[%clk 0:00:19.7]} 44. Bxf6 {[%clk 0:00:17.5]}
44... Qb8 {[%clk 0:00:16.4]} 45. Bh4 {[%clk 0:00:17.5]} 45... Bxc4 {[%clk
0:00:16.2]} 46. Qf6 {[%clk 0:00:15.4]} 46... Kd7 {[%clk 0:00:09.3]} 47. Qxf7+
{[%clk 0:00:15.4]} 47... Kc8 {[%clk 0:00:08.7]} 48. Qxg8+ {[%clk 0:00:15.7]}
48... Kb7 {[%clk 0:00:09]} 49. Qxb8+ {[%clk 0:00:16.6]} 49... Kxb8 {[%clk
0:00:09.9]} 50. bxc4 {[%clk 0:00:16.9]} 1-0